fUST/lending_fUST_20240414
["ID","MTS","AMOUNT","RATE_DAILY","PERIOD"]
[322456866,1713025840921,-284.67387657,0.00032998,4]
[322456867,1713025840930,-2455.98701678,0.00032999,4]
[322456868,1713025840940,-500.0,0.00032999,7]
[322456869,1713025840949,-500.0,0.00032999,7]
[322456870,1713025840958,-503.43,0.00032999,7]
[322456871,1713025840968,-500.0,0.00032999,7]
[322456872,1713025840981,-300.0,0.00032999,7]
[322456873,1713025840991,-500.0,0.00032999,7]
[322456874,1713025841000,-500.0,0.00032999,7]
[322456875,1713025841009,-500.0,0.00032999,7]
[322456876,1713025841020,-500.0,0.00032999,7]
[322456877,1713025841029,-500.0,0.00032999,7]
[322456878,1713025841038,-500.0,0.00032999,7]
[322456879,1713025841047,-500.0,0.00032999,7]
[322456880,1713025841056,-732.51,0.00032999,7]
[322456881,1713025841066,-500.0,0.00032999,7]
[322456882,1713025841076,-508.9012167,0.00032999,7]
[322456883,1713025841085,-500.0,0.00032999,7]
[322456884,1713025841095,-500.0,0.00032999,7]
[322456885,1713025841104,-500.0,0.00032999,7]
[322456886,1713025841113,-500.0,0.00032999,7]
[322456887,1713025841123,-500.0,0.00032999,7]
[322456888,1713025841132,-283.58691299,0.00032999,7]
[322456889,1713025841141,-500.0,0.00032999,7]
[322456890,1713025841150,-500.0,0.00032999,7]
[322456891,1713025841160,-482.63853284,0.00032999,7]
[322456892,1713025841170,-500.0,0.00032999,7]
[322456893,1713025841179,-510.04369506,0.00032999,7]
[322456894,1713025841188,-234.09076819,0.00032999,7]
[322456895,1713025841198,-504.87888477,0.00032999,7]
[322456896,1713025841207,-500.0,0.00032999,7]
[322456897,1713025841217,-500.0,0.00032999,7]
[322456898,1713025841226,-1994.31,0.00032999,7]
[322456899,1713025841238,-500.0,0.00032999,7]
[322456900,1713025841246,-916.95,0.00032999,7]
[322456901,1713025841255,-500.0,0.00032999,7]
[322456902,1713025841265,-500.0,0.00032999,7]
[322456903,1713025841275,-500.0,0.00032999,7]
[322456904,1713025841284,-500.0,0.00032999,7]
[322456905,1713025841293,-2059.2,0.00032999,7]
[322456906,1713025841303,-500.0,0.00032999,7]
[322456907,1713025841314,-500.0,0.00032999,7]
[322456908,1713025841324,-5397.36,0.00032999,7]
[322456909,1713025841333,-646.07,0.00032999,7]
[322456910,1713025841343,-500.0,0.00032999,7]
[322456911,1713025841352,-500.0,0.00032999,7]
[322456912,1713025841363,-500.0,0.00032999,7]
[322456913,1713025841373,-242.15952462,0.00032999,7]
[322456914,1713025841383,-502.09873569,0.00032999,7]
[322456915,1713025841392,-500.0,0.00032999,7]
[322456916,1713025841402,-1951.76,0.00032999,7]
[322456917,1713025841412,-500.0,0.00032999,7]
[322456918,1713025841421,-500.0,0.00032999,7]
[322456919,1713025841431,-1838.28,0.00032999,7]
[322456920,1713025841440,-511.58418896,0.00032999,7]
[322456921,1713025841450,-1138.02,0.00032999,7]
[322456922,1713025841460,-500.0,0.00032999,7]
[322456923,1713025841470,-500.0,0.00032999,7]
[322456924,1713025841594,-500.0,0.00032999,7]
[322456925,1713025841604,-577.5287327,0.00032999,7]
[322456926,1713025841614,-500.0,0.00032999,7]
[322456927,1713025841623,-500.0,0.00032999,7]
[322456928,1713025841633,-500.0,0.00032999,7]
[322456929,1713025841643,-500.0,0.00032999,7]
[322456930,1713025841652,-500.0,0.00032999,7]
[322456931,1713025841662,-500.0,0.00032999,7]
[322456932,1713025841671,-504.09628153,0.00032999,7]
[322456933,1713025841681,-500.0,0.00032999,7]
[322456934,1713025841690,-46457.0,0.00033,2]
[322456935,1713025841699,-187.0,0.00033,2]
[322456936,1713025841709,-1500.0,0.00033,2]
[322456937,1713025841717,-1500.0,0.00033,2]
[322456938,1713025841726,-1500.0,0.00033,2]
[322456939,1713025841736,-1500.0,0.00033,2]
[322456940,1713025841746,-1500.0,0.00033,2]
[322456941,1713025841756,-1500.0,0.00033,2]
[322456942,1713025841765,-1500.0,0.00033,2]
[322456943,1713025841774,-1227.12,0.00033,2]
[322456944,1713025841783,-1500.0,0.00033,2]
[322456945,1713025841792,-1500.0,0.00033,2]
[322456946,1713025841801,-1500.0,0.00033,2]
[322456947,1713025841810,-303.64832506,0.00033,2]
[322456948,1713025841819,-448.381207,0.00033,2]
[322456949,1713025841829,-448.381207,0.00033,2]
[322456950,1713025841838,-151.0,0.00033,2]
[322456951,1713025841847,-151.0,0.00033,2]
[322456952,1713025841856,-151.0,0.00033,2]
[322456953,1713025841865,-306.0,0.00033014,2]
[322456954,1713025841874,-202.9164481,0.00033014,2]
[322456955,1713025841883,-202.9164481,0.00033014,2]
[322456956,1713025841893,-202.9164481,0.00033014,2]
[322456957,1713025841902,-202.9164481,0.00033014,2]
[322456958,1713025841911,-202.9164481,0.00033014,2]
[322456959,1713025841921,-202.9164481,0.00033014,2]
[322456960,1713025841930,-155.57915177,0.00033089,2]
[322456961,1713025841939,-4817.28,0.00033149,2]
[322456962,1713025841948,-4817.28,0.00033149,2]
[322456963,1713025841958,-4817.28,0.00033149,2]
[322456964,1713025841967,-4817.28,0.00033149,2]
[322456965,1713025841976,-4817.28,0.00033149,2]
[322456966,1713025841988,-4817.28,0.00033149,2]
[322456967,1713025841998,-4817.28,0.00033149,2]
[322456968,1713025842007,-4817.28,0.00033149,2]
[322456969,1713025842016,-4817.28,0.00033149,2]
[322456970,1713025842026,-500.0,0.0003315,7]
[322456971,1713025842035,-489.54793724,0.0003315,7]
[322456972,1713025842045,-500.0,0.0003315,7]
[322456973,1713025842054,-1321.92,0.0003315,7]
[322456974,1713025842064,-364.05256396,0.0003315,7]
[322456975,1713025842074,-500.0,0.0003315,7]
[322456976,1713025842083,-1265.29,0.0003315,2]
[322456977,1713025842093,-506.47940517,0.0003315,7]
[322456978,1713025842103,-500.0,0.0003315,7]
[322456979,1713025842112,-500.0,0.0003315,7]
[322456980,1713025842123,-500.0,0.0003315,7]
[322456981,1713025842133,-500.0,0.0003315,7]
[322456982,1713025842142,-500.0,0.0003315,7]
[322456983,1713025842152,-500.0,0.0003315,7]
[322456984,1713025842161,-1775.2,0.0003315,7]
[322456985,1713025842170,-518.626347,0.0003315,7]
[322456986,1713025842179,-723.42,0.0003315,7]
[322456987,1713025842189,-500.0,0.0003315,7]
[322456988,1713025842199,-151.0,0.0003315,2]
[322456989,1713025842208,-500.0,0.0003315,7]
[322456990,1713025842217,-500.0,0.0003315,7]
[322456991,1713025842227,-151.0,0.0003315,2]
[322456992,1713025842238,-500.0,0.0003315,7]
[322456993,1713025842247,-500.0,0.0003315,7]
[322456994,1713025842256,-534.83,0.0003315,7]
[322456995,1713025842265,-1218.57,0.0003315,7]
[322456996,1713025842274,-500.0,0.0003315,7]
[322456997,1713025842283,-933.29,0.0003315,7]
[322456998,1713025842293,-500.0,0.0003315,7]
[322456999,1713025842302,-158.307594,0.0003315,2]
[322457000,1713025842311,-158.307594,0.0003315,2]
[322457001,1713025842320,-3143.58,0.0003315,7]
[322457002,1713025842329,-1093.67,0.0003315,7]
[322457003,1713025842339,-3299.02,0.0003315,7]
[322457004,1713025842349,-151.0,0.0003315,2]
[322457005,1713025842358,-151.0,0.0003315,2]
[322457006,1713025842368,-532.76534943,0.0003315,7]
[322457007,1713025842378,-151.0,0.0003315,2]
[322457008,1713025842387,-2280.7,0.0003315,7]
[322457009,1713025842397,-1274.99,0.0003315,7]
[322457010,1713025842406,-500.0,0.0003315,7]
[322457011,1713025842416,-738.876252,0.0003315,2]
[322457012,1713025842426,-500.0,0.0003315,7]
[322457013,1713025842435,-500.0,0.0003315,7]
[322457014,1713025842444,-738.876252,0.0003315,2]
[322457015,1713025842454,-500.0,0.0003315,7]
[322457016,1713025842463,-500.0,0.0003315,7]
[322457017,1713025842472,-500.0,0.0003315,7]
[322457018,1713025842481,-2139.36,0.0003315,7]
[322457019,1713025842490,-504.6097672,0.0003315,7]
[322457020,1713025842499,-500.0,0.0003315,7]
[322457021,1713025842508,-530.0,0.0003315,7]
[322457022,1713025842517,-729.89,0.0003315,7]
[322457023,1713025842526,-668.23,0.0003315,7]
[322457024,1713025842535,-1984.33,0.0003315,7]
[322457025,1713025842544,-914.0,0.0003315,7]
[322457026,1713025842555,-1100.56,0.0003315,7]
[322457027,1713025842565,-500.0,0.0003315,7]
[322457028,1713025842574,-500.0,0.0003315,7]
[322457029,1713025842585,-695.77,0.0003315,7]
[322457030,1713025842594,-199.06636884,0.0003315,7]
[322457031,1713025842603,-795.01,0.0003315,7]
[322457032,1713025842612,-448.381207,0.0003315,2]
[322457033,1713025842622,-500.0,0.0003315,7]
[322457034,1713025842631,-2333.58,0.0003315,7]
[322457035,1713025842641,-448.381207,0.0003315,2]
[322457036,1713025842650,-151.0,0.0003315,2]
[322457037,1713025842660,-500.0,0.0003315,7]
[322457038,1713025842670,-151.0,0.0003315,2]
[322457039,1713025842680,-963.24,0.0003315,7]
[322457040,1713025842689,-500.0,0.0003315,7]
[322457041,1713025842698,-151.0,0.0003315,2]
[322457042,1713025842707,-500.0,0.0003315,7]
[322457043,1713025842716,-927.3,0.0003315,7]
[322457044,1713025842725,-899.87,0.0003315,7]
[322457045,1713025842735,-500.0,0.0003315,7]
[322457046,1713025842746,-500.0,0.0003315,7]
[322457047,1713025842756,-151.0,0.0003315,2]
[322457048,1713025842765,-877.66,0.0003315,7]
[322457049,1713025842775,-500.0,0.0003315,7]
[322457050,1713025842784,-609.95,0.0003315,7]
[322457051,1713025842794,-9099.06,0.0003315,7]
[322457052,1713025842803,-500.0,0.0003315,7]
[322457053,1713025842812,-500.0,0.0003315,7]
[322457054,1713025842821,-500.0,0.0003315,7]
[322457055,1713025842831,-885.852729,0.0003315,2]
[322457056,1713025842841,-885.852729,0.0003315,2]
[322457057,1713025842851,-500.0,0.0003315,7]
[322457058,1713025842862,-519.03290826,0.0003315,7]
[322457059,1713025842871,-28786.9,0.0003315,7]
[322457060,1713025842881,-1045.377267,0.0003315,2]
[322457061,1713025842890,-151.0,0.0003315,2]
[322457062,1713025842899,-1045.377267,0.0003315,2]
[322457063,1713025842908,-500.0,0.0003315,7]
[322457064,1713025842917,-187.0,0.00033151,2]
[322457065,1713025842926,-455.890791,0.00033151,2]
[322457066,1713025842936,-303.64832506,0.00033162,2]
[322457067,1713025842945,-503.43,0.00033273,7]
[322457068,1713025842954,-500.0,0.00033273,7]
[322457069,1713025842963,-500.0,0.00033273,7]
[322457070,1713025842975,-500.0,0.00033273,7]
[322457071,1713025842985,-500.0,0.00033273,7]
[322457072,1713025842995,-500.0,0.00033273,7]
[322457073,1713025843008,-732.51,0.00033273,7]
[322457074,1713025843018,-500.0,0.00033273,7]
[322457075,1713025843027,-508.52981161,0.00033273,7]
[322457076,1713025843037,-500.0,0.00033273,7]
[322457077,1713025843046,-617.97979416,0.00033273,7]
[322457078,1713025843057,-1994.31,0.00033273,7]
[322457079,1713025843066,-916.95,0.00033273,7]
[322457080,1713025843076,-500.0,0.00033273,7]
[322457082,1713025843085,-500.0,0.00033273,7]
[322457083,1713025843094,-158.307594,0.00033273,2]
[322457084,1713025843104,-158.307594,0.00033273,2]
[322457085,1713025843113,-2059.2,0.00033273,7]
[322457086,1713025843123,-151.0,0.00033273,2]
[322457087,1713025843132,-151.0,0.00033273,2]
[322457089,1713025843142,-151.0,0.00033273,2]
[322457090,1713025843151,-5397.36,0.00033273,7]
[322457092,1713025843161,-738.876252,0.00033273,2]
[322457094,1713025843170,-646.07,0.00033273,7]
[322457095,1713025843180,-738.876252,0.00033273,2]
[322457096,1713025843189,-500.0,0.00033273,7]
[322457097,1713025843198,-500.0,0.00033273,7]
[322457099,1713025843207,-500.0,0.00033273,7]
[322457100,1713025843217,-1951.76,0.00033273,7]
[322457101,1713025843226,-448.381207,0.00033273,2]
[322457103,1713025843240,-448.381207,0.00033273,2]
[322457105,1713025843249,-151.0,0.00033273,2]
[322457106,1713025843259,-500.0,0.00033273,7]
[322457109,1713025843269,-1838.28,0.00033273,7]
[322457111,1713025843279,-158.557949,0.00033273,2]
[322457113,1713025843288,-151.0,0.00033273,2]
[322457115,1713025843297,-1138.02,0.00033273,7]
[322457117,1713025843307,-500.0,0.00033273,7]
[322457119,1713025843316,-500.0,0.00033273,7]
[322457121,1713025843325,-151.0,0.00033273,2]
[322457123,1713025843334,-500.0,0.00033273,7]
[322457125,1713025843344,-500.0,0.00033273,7]
[322457127,1713025843353,-500.0,0.00033273,7]
[322457129,1713025843362,-500.0,0.00033273,7]
[322457131,1713025843372,-885.852729,0.00033273,2]
[322457133,1713025843381,-885.852729,0.00033273,2]
[322457135,1713025843390,-1045.377267,0.00033273,2]
[322457137,1713025843399,-151.0,0.00033273,2]
[322457139,1713025843409,-500.0,0.00033273,7]
[322457140,1713025843418,-1045.377267,0.00033273,2]
[322457141,1713025843427,-303.64832506,0.00033324,2]
[322457142,1713025843436,-1212.31518255,0.00033385,5]
[322457143,1713025843445,-4817.28,0.00033423,2]
[322457144,1713025843454,-1014.05805107,0.00033424,4]
[322457145,1713025843463,-237.93432944,0.00033424,2]
[322457146,1713025843472,-475.98183749,0.00033424,7]
[322457147,1713025843481,-155.450434,0.00033424,2]
[322457148,1713025843493,-209.69412608,0.00033424,7]
[322457149,1713025843503,-1321.92,0.00033424,7]
[322457150,1713025843512,-1265.29,0.00033424,2]
[322457151,1713025843521,-151.0,0.00033424,2]
[322457152,1713025843531,-151.0,0.00033424,2]
[322457154,1713025843539,-151.0,0.00033424,2]
[322457156,1713025843549,-151.0,0.00033424,2]
[322457158,1713025843558,-151.0,0.00033424,2]
[322457160,1713025843568,-151.0,0.00033424,2]
[322457161,1713025843577,-151.0,0.00033424,2]
[322457163,1713025843587,-217.959432,0.00033424,2]
[322457165,1713025843596,-151.0,0.00033424,2]
[322457167,1713025843606,-230.586771,0.00033424,2]
[322457168,1713025843615,-500.0,0.00033424,7]
[322457169,1713025843625,-500.0,0.00033424,7]
[322457171,1713025843634,-151.0,0.00033424,2]
[322457173,1713025843643,-151.0,0.00033424,2]
[322457174,1713025843655,-500.0,0.00033424,7]
[322457175,1713025843664,-500.0,0.00033424,7]
[322457176,1713025843673,-500.0,0.00033424,7]
[322457177,1713025843682,-500.0,0.00033424,7]
[322457178,1713025843692,-1775.2,0.00033424,7]
[322457179,1713025843701,-723.42,0.00033424,7]
[322457180,1713025843710,-151.0,0.00033424,2]
[322457181,1713025843719,-151.0,0.00033424,2]
[322457182,1713025843728,-500.0,0.00033424,7]
[322457183,1713025843740,-180.687813,0.00033424,2]
[322457184,1713025843749,-180.687813,0.00033424,2]
[322457185,1713025843757,-1001.043167,0.00033424,2]
[322457186,1713025843767,-1001.043167,0.00033424,2]
[322457187,1713025843776,-180.687813,0.00033424,2]
[322457188,1713025843786,-180.687813,0.00033424,2]
[322457189,1713025843795,-1001.043167,0.00033424,2]
[322457190,1713025843804,-1001.043167,0.00033424,2]
[322457191,1713025843814,-151.0,0.00033424,2]
[322457192,1713025843823,-151.0,0.00033424,2]
[322457193,1713025843832,-500.0,0.00033424,7]
[322457194,1713025843841,-151.0,0.00033424,2]
[322457195,1713025843851,-151.0,0.00033424,2]
[322457196,1713025843860,-151.0,0.00033424,2]
[322457197,1713025843870,-151.0,0.00033424,2]
[322457198,1713025843879,-151.0,0.00033424,2]
[322457199,1713025843888,-151.0,0.00033424,2]
[322457200,1713025843898,-500.0,0.00033424,7]
[322457201,1713025843907,-500.0,0.00033424,7]
[322457202,1713025843916,-534.83,0.00033424,7]
[322457203,1713025843926,-253.704668,0.00033424,2]
[322457204,1713025843934,-151.0,0.00033424,2]
[322457205,1713025843944,-151.0,0.00033424,2]
[322457206,1713025843954,-151.0,0.00033424,2]
[322457207,1713025843963,-1218.57,0.00033424,7]
[322457208,1713025843974,-151.0,0.00033424,2]
[322457209,1713025843984,-151.0,0.00033424,2]
[322457210,1713025843999,-500.0,0.00033424,7]
[322457211,1713025844008,-933.29,0.00033424,7]
[322457212,1713025844018,-500.0,0.00033424,7]
[322457213,1713025844027,-158.307594,0.00033424,2]
[322457214,1713025844035,-158.307594,0.00033424,2]
[322457215,1713025844045,-3143.58,0.00033424,7]
[322457216,1713025844055,-1093.67,0.00033424,7]
[322457217,1713025844065,-3299.02,0.00033424,7]
[322457218,1713025844074,-151.0,0.00033424,2]
[322457219,1713025844083,-151.0,0.00033424,2]
[322457220,1713025844093,-151.0,0.00033424,2]
[322457221,1713025844102,-2280.7,0.00033424,7]
[322457222,1713025844112,-1274.99,0.00033424,7]
[322457223,1713025844121,-738.876252,0.00033424,2]
[322457224,1713025844130,-500.0,0.00033424,7]
[322457225,1713025844140,-738.876252,0.00033424,2]
[322457226,1713025844149,-500.0,0.00033424,7]
[322457227,1713025844158,-500.0,0.00033424,7]
[322457228,1713025844167,-2139.36,0.00033424,7]
[322457229,1713025844177,-530.0,0.00033424,7]
[322457230,1713025844186,-500.0,0.00033424,7]
[322457231,1713025844195,-729.89,0.00033424,7]
[322457232,1713025844204,-668.23,0.00033424,7]
[322457233,1713025844213,-1984.33,0.00033424,7]
[322457234,1713025844223,-914.0,0.00033424,7]
[322457235,1713025844232,-1100.56,0.00033424,7]
[322457236,1713025844245,-500.0,0.00033424,7]
[322457237,1713025844349,-695.77,0.00033424,7]
[322457238,1713025844358,-795.01,0.00033424,7]
[322457239,1713025844367,-448.381207,0.00033424,2]
[322457240,1713025844377,-500.0,0.00033424,7]
[322457241,1713025844386,-2333.58,0.00033424,7]
[322457242,1713025844395,-448.381207,0.00033424,2]
[322457243,1713025844403,-263.284646,0.00033424,2]
[322457244,1713025844413,-963.24,0.00033424,7]
[322457245,1713025844422,-500.0,0.00033424,7]
[322457246,1713025844430,-151.0,0.00033424,2]
[322457247,1713025844440,-500.0,0.00033424,7]
[322457248,1713025844449,-899.87,0.00033424,7]
[322457249,1713025844459,-927.3,0.00033424,7]
[322457250,1713025844468,-500.0,0.00033424,7]
[322457251,1713025844477,-877.66,0.00033424,7]
[322457252,1713025844490,-151.0,0.00033424,2]
[322457253,1713025844499,-609.95,0.00033424,7]
[322457254,1713025844509,-2318.37646087,0.00033424,7]
[322457255,1713025844631,-653.01783059,0.00033424,7]
[322457256,1713025844829,-500.0,0.00032876,7]
[322457257,1713025844838,-699.9861231,0.00032876,7]
[322457298,1713026315133,3008.28,0.00021,2]
[322457300,1713026751247,391.26644924,0.000189,2]
[322457394,1713027037993,-155.02790502,0.00023893,2]
[322457396,1713027038004,-3132.48139902,0.00023894,2]
[322457398,1713027038013,-1048.07613264,0.00023895,2]
[322457405,1713027038063,-959.03950483,0.00023895,2]
[322457407,1713027038073,-391.26644924,0.000239,2]
[322457409,1713027038083,-162.279161,0.00027397,2]
[322457411,1713027038093,-161.178073,0.00027397,2]
[322457427,1713027038286,-167.521731,0.00027397,2]
[322457428,1713027038302,-250.0,0.00030599,2]
[322457429,1713027038312,-167.644611,0.0003102,2]
[322457430,1713027038321,-400.0,0.000323,2]
[322457431,1713027038331,-620.00359203,0.00032301,2]
[322457432,1713027038342,-202.9164481,0.000324,2]
[322457433,1713027038352,-202.9164481,0.000324,2]
[322457434,1713027038362,-202.9164481,0.000324,2]
[322457435,1713027038371,-202.9164481,0.000327,2]
[322457436,1713027038380,-202.9164481,0.000327,2]
[322457437,1713027038391,-372.18743072,0.00032776,6]
[322457438,1713027038400,-800.0,0.000328,2]
[322457439,1713027038412,-4671.98217239,0.00032875,4]
[322457440,1713027038423,-1014.05805107,0.00032876,4]
[322457441,1713027038432,-500.0,0.00032876,7]
[322457442,1713027038441,-500.0,0.00032876,7]
[322457443,1713027038450,-629.26086942,0.00032876,7]
[322457444,1713027038459,-509.57875445,0.00032876,7]
[322457445,1713027038467,-500.0,0.00032876,7]
[322457446,1713027038476,-500.0,0.00032876,7]
[322457447,1713027038486,-158.81891326,0.00032876,7]
[322457448,1713027038495,-732.84,0.00032876,7]
[322457449,1713027038505,-500.0,0.00032876,7]
[322457450,1713027038515,-237.93432944,0.00032876,2]
[322457451,1713027038524,-500.0,0.00032876,7]
[322457452,1713027038533,-500.0,0.00032876,7]
[322457453,1713027038543,-512.13517562,0.00032876,7]
[322457454,1713027038552,-1033.11,0.00032876,7]
[322457455,1713027038561,-500.0,0.00032876,7]
[322457456,1713027038570,-500.0,0.00032876,7]
[322457457,1713027038580,-500.0,0.00032876,7]
[322457458,1713027038590,-840.54,0.00032876,7]
[322457459,1713027038599,-500.0,0.00032876,7]
[322457460,1713027038609,-617.97979416,0.00032876,7]
[322457461,1713027038618,-500.0,0.00032876,7]
[322457462,1713027038627,-500.0,0.00032876,7]
[322457463,1713027038637,-500.0,0.00032876,7]
[322457464,1713027038646,-500.0,0.00032876,7]
[322457465,1713027038655,-500.0,0.00032876,7]
[322457466,1713027038669,-500.0,0.00032876,7]
[322457467,1713027038678,-503.88828186,0.00032876,7]
[322457468,1713027038688,-481.75517932,0.00032876,7]
[322457469,1713027038697,-1711.48,0.00032876,7]
[322457470,1713027038706,-500.0,0.00032876,7]
[322457471,1713027038715,-752.8,0.00032876,7]
[322457472,1713027038725,-500.0,0.00032876,7]
[322457473,1713027038735,-500.0,0.00032876,7]
[322457474,1713027038744,-500.0,0.00032876,7]
[322457475,1713027038754,-500.0,0.00032876,7]
[322457476,1713027038763,-500.0,0.00032876,7]
[322457477,1713027038772,-500.0,0.00032876,7]
[322457478,1713027038781,-500.0,0.00032876,7]
[322457479,1713027038791,-500.0,0.00032876,7]
[322457480,1713027038800,-500.0,0.00032876,7]
[322457481,1713027038809,-500.0,0.00032876,7]
[322457482,1713027038818,-554.51550462,0.00032876,7]
[322457483,1713027038827,-375.0726596,0.00032876,7]
[322457484,1713027038838,-263.05878435,0.00032876,7]
[322457485,1713027038847,-500.0,0.00032876,7]
[322457486,1713027038857,-500.0,0.00032876,7]
[322457487,1713027038866,-500.0,0.00032876,7]
[322457488,1713027038876,-500.0,0.00032876,7]
[322457489,1713027038885,-500.0,0.00032876,7]
[322457490,1713027038894,-2881.62,0.00032876,7]
[322457491,1713027038903,-293.17361878,0.00032876,7]
[322457492,1713027038915,-507.69288927,0.00032876,7]
[322457493,1713027038925,-500.0,0.00032876,7]
[322457494,1713027038934,-508.76774149,0.00032876,7]
[322457495,1713027038943,-532.76534943,0.00032876,7]
[322457496,1713027038953,-510.44738088,0.00032876,7]
[322457497,1713027038962,-2270.14,0.00032876,7]
[322457498,1713027038972,-500.0,0.00032876,7]
[322457500,1713027038983,-500.0,0.00032876,7]
[322457501,1713027038994,-500.0,0.00032876,7]
[322457502,1713027039005,-500.0,0.00032876,7]
[322457504,1713027039014,-500.0,0.00032876,7]
[322457505,1713027039025,-500.0,0.00032876,7]
[322457506,1713027039034,-530.95,0.00032876,7]
[322457507,1713027039043,-503.40471124,0.00032876,7]
[322457508,1713027039053,-503.88214956,0.00032876,7]
[322457509,1713027039062,-500.0,0.00032876,7]
[322457510,1713027039070,-500.0,0.00032876,7]
[322457511,1713027039080,-910.53,0.00032876,7]
[322457512,1713027039089,-500.0,0.00032876,7]
[322457513,1713027039099,-500.0,0.00032876,7]
[322457514,1713027039109,-500.0,0.00032876,7]
[322457515,1713027039118,-500.0,0.00032876,7]
[322457516,1713027039127,-500.0,0.00032876,7]
[322457517,1713027039136,-520.85823513,0.00032876,7]
[322457518,1713027039145,-500.0,0.00032876,7]
[322457519,1713027039155,-500.0,0.00032876,7]
[322457520,1713027039171,-421.52702997,0.00032876,7]
[322457521,1713027039180,-500.0,0.00032876,7]
[322457522,1713027039189,-500.0,0.00032876,7]
[322457523,1713027039198,-449.79776823,0.00032876,7]
[322457524,1713027039208,-501.33177882,0.00032876,7]
[322457525,1713027039217,-9072.47,0.00032876,7]
[322457526,1713027039226,-1391.19,0.00032876,7]
[322457527,1713027039235,-500.0,0.00032876,7]
[322457528,1713027039245,-502.74693819,0.00032876,7]
[322457529,1713027039254,-502.3961917,0.00032876,7]
[322457530,1713027039263,-501.62064787,0.00032876,7]
[322457531,1713027039271,-931.15,0.00032876,7]
[322457532,1713027039280,-1356.6,0.00032876,2]
[322457533,1713027039289,-500.0,0.00032876,7]
[322457534,1713027039298,-151.82416253,0.00032898,2]
[322457535,1713027039307,-2000.0,0.000329,2]
[322457536,1713027039316,-500.0,0.00032998,7]
[322457537,1713027039326,-502.85541641,0.00032998,14]
[322457538,1713027039335,-500.0,0.00032998,7]
[322457539,1713027039347,-500.0,0.00032998,7]
[322457540,1713027039356,-500.0,0.00032998,7]
[322457541,1713027039365,-500.0,0.00032998,7]
[322457542,1713027039374,-500.0,0.00032998,7]
[322457543,1713027039384,-500.0,0.00032998,7]
[322457544,1713027039393,-500.0,0.00032998,7]
[322457547,1713027039402,-500.0,0.00032998,7]
[322457549,1713027039414,-500.0,0.00032998,7]
[322457551,1713027039423,-500.0,0.00032998,7]
[322457553,1713027039433,-500.0,0.00032998,7]
[322457555,1713027039442,-500.0,0.00032998,7]
[322457557,1713027039451,-500.0,0.00032998,7]
[322457559,1713027039460,-500.0,0.00032998,7]
[322457561,1713027039469,-566.96,0.00032998,7]
[322457563,1713027039478,-500.0,0.00032998,7]
[322457565,1713027039487,-500.0,0.00032998,7]
[322457567,1713027039496,-1161.09,0.00032998,7]
[322457569,1713027039506,-500.0,0.00032998,7]
[322457570,1713027039515,-3306.89,0.00032998,7]
[322457572,1713027039524,-500.0,0.00032998,7]
[322457574,1713027039533,-1973.4,0.00032998,7]
[322457576,1713027039544,-1221.86,0.00032998,7]